[Event "Championnat du monde jeunes U12"]
[Date "2024.11.20"]
[White "Zhang, Sean"]
[Black "Platonovs, Nikolajs"]
[WhiteElo "1789"]
[BlackElo "1969"]
[Round "6.29"]
[Result "0-1"]
[TimeControl "5400+30"]

1. d4 {[%clk 1:30:57]} 1... d5 {[%clk 1:30:55]} 2. Bf4 {[%clk 1:31:20]} 2... c5
{[%clk 1:31:20]} 3. e3 {[%clk 1:31:44]} 3... Nc6 {[%clk 1:31:44]} 4. c3 {[%clk
1:32:06]} 4... Qb6 {[%clk 1:31:37]} 5. Qb3 {[%clk 1:29:14]} 5... c4 {[%clk
1:32:01]} 6. Qc2 {[%clk 1:19:36]} 6... g6 {[%clk 1:25:06]} 7. Nd2 {[%clk
1:18:08]} 7... Nf6 {[%clk 1:24:04]} 8. e4 {[%clk 1:14:44]} 8... dxe4 {[%clk
1:16:57]} 9. Nxc4 {[%clk 1:10:47]} 9... Qd8 {[%clk 1:16:22]} 10. Ne3 {[%clk
1:07:48]} 10... Qa5 {[%clk 1:05:00]} 11. b4 {[%clk 1:05:00]} 11... Qd8 {[%clk
0:59:47]} 12. Bc4 {[%clk 1:04:42]} 12... Bg7 {[%clk 0:54:51]} 13. Ne2 {[%clk
1:04:28]} 13... O-O {[%clk 0:42:43]} 14. O-O {[%clk 1:03:54]} 14... Bf5 {[%clk
0:41:54]} 15. Nxf5 {[%clk 1:02:42]} 15... gxf5 {[%clk 0:41:51]} 16. Qd2 {[%clk
1:01:50]} 16... e6 {[%clk 0:40:17]} 17. Bh6 {[%clk 1:01:40]} 17... Bxh6 {[%clk
0:37:25]} 18. Qxh6 {[%clk 1:01:57]} 18... Ng4 {[%clk 0:37:36]} 19. Qf4 {[%clk
1:01:36]} 19... Ne7 {[%clk 0:34:55]} 20. h3 {[%clk 0:59:03]} 20... Ng6 {[%clk
0:34:24]} 21. Qg3 {[%clk 0:58:48]} 21... Nf6 {[%clk 0:34:34]} 22. Nf4 Rc8 {[%clk
0:33:48]} 23. Bb3 {[%clk 0:58:21]} 23... Qc7 {[%clk 0:32:49]} 24. Nxg6 {[%clk
0:57:44]} 24... hxg6 {[%clk 0:33:10]} 25. Qxc7 {[%clk 0:55:26]} 25... Rxc7
{[%clk 0:33:34]} 26. c4 {[%clk 0:55:40]} 26... Rd8 {[%clk 0:33:39]} 27. Rfd1
{[%clk 0:55:43]} 27... Rcd7 {[%clk 0:33:55]} 28. d5 {[%clk 0:52:29]} 28... exd5
{[%clk 0:32:59]} 29. Ba4 {[%clk 0:52:17]} 29... Rc7 {[%clk 0:33:00]} 30. cxd5
{[%clk 0:52:20]} 30... Rxd5 {[%clk 0:33:07]} 31. Rac1 {[%clk 0:51:56]} 31...
Rxd1+ {[%clk 0:31:15]} 32. Rxd1 {[%clk 0:51:16]} 32... Rc4 {[%clk 0:31:26]} 33.
Bb3 {[%clk 0:50:34]} 33... Rxb4 {[%clk 0:31:33]} 34. Rd6 {[%clk 0:50:21]} 34...
Kg7 {[%clk 0:31:49]} 35. Kf1 {[%clk 0:50:38]} 35... a5 {[%clk 0:31:41]} 36. Bd1
{[%clk 0:48:59]} 36... Rb2 {[%clk 0:30:33]} 37. a4 {[%clk 0:49:22]} 37... b5
{[%clk 0:29:46]} 38. Ra6 {[%clk 0:46:56]} 38... Nd5 {[%clk 0:29:43]} 39. axb5
{[%clk 0:45:30]} 39... Nc3 {[%clk 0:29:17]} 40. Ke1 {[%clk 0:45:41]} 40... Rxb5
0-1

[Variant "Standard"]
[Site "Europe Echecs"]

[Event "Championnat du monde jeunes U12"]
[Date "2024.11.20"]
[White "Ilcic, Aleksa"]
[Black "Zhandos, Akarys"]
[WhiteElo "1757"]
[BlackElo "1932"]
[Round "6.30"]
[Result "0-1"]
[TimeControl "5400+30"]

1. d4 {[%clk 1:30:57]} 1... Nf6 {[%clk 1:30:56]} 2. c4 {[%clk 1:31:19]} 2... b6
{[%clk 1:28:52]} 3. Nc3 {[%clk 1:31:29]} 3... Bb7 {[%clk 1:29:00]} 4. Nf3 {[%clk
1:31:34]} 4... e6 {[%clk 1:28:28]} 5. a3 {[%clk 1:31:49]} 5... d5 {[%clk
1:28:45]} 6. cxd5 {[%clk 1:31:04]} 6... Nxd5 {[%clk 1:28:12]} 7. Qc2 {[%clk
1:28:06]} 7... c5 {[%clk 1:26:29]} 8. e4 {[%clk 1:22:32]} 8... Nxc3 {[%clk
1:26:53]} 9. bxc3 {[%clk 1:22:38]} 9... Nc6 {[%clk 1:24:58]} 10. Bb5 {[%clk
1:16:02]} 10... a6 {[%clk 1:24:54]} 11. Bxc6+ {[%clk 1:14:53]} 11... Bxc6 {[%clk
1:25:23]} 12. O-O {[%clk 1:15:07]} 12... cxd4 {[%clk 1:25:38]} 13. Rd1 {[%clk
1:11:07]} 13... d3 {[%clk 1:25:51]} 14. Rxd3 {[%clk 1:10:06]} 14... Qc7 {[%clk
1:26:15]} 15. Rd1 {[%clk 1:09:30]} 15... Bc5 {[%clk 1:26:41]} 16. Nd4 {[%clk
1:06:03]} 16... Bb7 {[%clk 1:24:39]} 17. Bb2 {[%clk 0:51:20]} 17... O-O {[%clk
1:24:41]} 18. Rac1 {[%clk 0:50:59]} 18... Rac8 {[%clk 1:23:49]} 19. Qe2 {[%clk
0:51:05]} 19... Qe7 {[%clk 1:23:45]} 20. a4 {[%clk 0:45:13]} 20... Qh4 {[%clk
1:19:14]} 21. Re1 {[%clk 0:45:12]} 21... Rfd8 {[%clk 1:18:48]} 22. Rcd1 {[%clk
0:42:58]} 22... Qe7 {[%clk 1:19:04]} 23. Qg4 {[%clk 0:38:18]} 23... Ba3 {[%clk
1:12:06]} 24. Nxe6 {[%clk 0:24:25]} 24... fxe6 {[%clk 1:06:51]} 25. Bxa3 {[%clk
0:24:45]} 25... Qxa3 {[%clk 1:04:46]} 26. Qxe6+ {[%clk 0:24:23]} 26... Kh8
{[%clk 1:05:06]} 27. Qxb6 {[%clk 0:24:43]} 27... Rxd1 {[%clk 1:04:23]} 28. Rxd1
{[%clk 0:25:02]} 28... Qe7 {[%clk 1:04:52]} 29. Qd6 {[%clk 0:24:07]} 29... Qxe4
{[%clk 1:03:22]} 30. Qd8+ {[%clk 0:21:21]} 30... Qe8 {[%clk 1:03:42]} 31. Qxe8+
{[%clk 0:21:39]} 31... Rxe8 {[%clk 1:04:08]} 32. f3 {[%clk 0:22:00]} 32... Bc6
{[%clk 1:04:08]} 33. Rd6 {[%clk 0:19:29]} 33... Rc8 {[%clk 1:04:36]} 34. Kf2
{[%clk 0:19:13]} 34... h6 {[%clk 1:04:51]} 35. Rd4 {[%clk 0:18:38]} 35... Be8
{[%clk 1:04:53]} 36. Ke2 {[%clk 0:18:34]} 36... Kh7 {[%clk 1:05:01]} 37. Kd2
{[%clk 0:17:46]} 37... Rc6 {[%clk 1:05:26]} 38. Rd8 {[%clk 0:14:04]} 38... Bg6
{[%clk 1:05:48]} 39. Ra8 {[%clk 0:13:36]} 39... Rd6+ {[%clk 1:05:29]} 40. Ke3
{[%clk 0:13:20]} 40... Rd3+ {[%clk 1:04:28]} 41. Kf2 {[%clk 0:13:21]} 41... Rxc3
{[%clk 1:04:39]} 42. Rxa6 {[%clk 0:13:33]} 42... Rc2+ {[%clk 1:05:05]} 43. Kg1
{[%clk 0:12:53]} 43... Ra2 {[%clk 1:04:59]} 44. Ra8 {[%clk 0:10:40]} 44... Bd3
{[%clk 1:04:52]} 45. h4 {[%clk 0:10:34]} 45... Kg6 {[%clk 1:04:45]} 46. Ra7
{[%clk 0:10:29]} 46... Bc2 {[%clk 1:04:16]} 47. h5+ {[%clk 0:08:25]} 47... Kh7
{[%clk 1:01:59]} 48. a5 {[%clk 0:08:38]} 48... Ba4 {[%clk 1:02:23]} 49. Ra8
{[%clk 0:07:46]} 49... Bc6 {[%clk 1:02:50]} 50. Rc8 {[%clk 0:07:39]} 50... Bb5
{[%clk 0:58:10]} 51. Rc5 {[%clk 0:07:55]} 51... Be8 {[%clk 0:57:27]} 52. Re5
{[%clk 0:07:39]} 52... Bf7 {[%clk 0:57:53]} 53. Rc5 {[%clk 0:07:58]} 53... Re2
{[%clk 0:55:58]} 54. Kf1 {[%clk 0:07:19]} 54... Rd2 {[%clk 0:56:15]} 55. Kg1
{[%clk 0:07:13]} 55... Rd5 {[%clk 0:51:08]} 56. Rxd5 {[%clk 0:07:35]} 56... Bxd5
{[%clk 0:51:36]} 57. a6 {[%clk 0:07:38]} 57... Kg8 {[%clk 0:52:01]} 58. Kf2
{[%clk 0:08:06]} 58... Kf7 {[%clk 0:52:27]} 59. g4 {[%clk 0:08:23]} 59... Ke6
{[%clk 0:52:13]} 60. Kg3 {[%clk 0:08:45]} 60... Ke5 {[%clk 0:52:35]} 61. f4+
{[%clk 0:08:38]} 61... Ke4 {[%clk 0:51:36]} 62. a7 {[%clk 0:06:41]} 62... Bc6
{[%clk 0:51:37]} 63. f5 {[%clk 0:06:58]} 63... Ke5 {[%clk 0:51:56]} 64. Kh2
{[%clk 0:05:54]} 64... Kf4 {[%clk 0:52:05]} 65. Kh3 {[%clk 0:06:03]} 65... Ba8
{[%clk 0:52:25]} 66. Kh4 {[%clk 0:06:17]} 66... Bg2 {[%clk 0:52:42]} 67. a8=N
{[%clk 0:05:57]} 67... Bxa8 {[%clk 0:52:59]} 0-1

[Variant "Standard"]
[Site "Europe Echecs"]

[Event "Championnat du monde jeunes U12"]
[Date "2024.11.20"]
[White "Farzaleev, Daniyar"]
[Black "Zhang, Haoxuan"]
[WhiteElo "1622"]
[BlackElo "1932"]
[Round "6.31"]
[Result "0-1"]
[TimeControl "5400+30"]

1. d4 {[%clk 1:30:57]} 1... Nf6 {[%clk 1:30:31]} 2. Nf3 {[%clk 1:31:14]} 2... e6
{[%clk 1:30:29]} 3. c4 {[%clk 1:31:20]} 3... d5 {[%clk 1:30:41]} 4. g3 {[%clk
1:31:43]} 4... Be7 {[%clk 1:29:05]} 5. Bg2 {[%clk 1:32:07]} 5... O-O {[%clk
1:28:24]} 6. O-O {[%clk 1:32:30]} 6... c6 {[%clk 1:27:06]} 7. Nc3 {[%clk
1:31:52]} 7... Nbd7 {[%clk 1:26:34]} 8. Qc2 {[%clk 1:32:12]} 8... dxc4 {[%clk
1:19:29]} 9. Rd1 {[%clk 1:29:40]} 9... Nd5 {[%clk 1:17:39]} 10. e4 {[%clk
1:27:15]} 10... Nb4 {[%clk 1:13:39]} 11. Qe2 {[%clk 1:27:16]} 11... Nd3 {[%clk
1:14:00]} 12. Ne1 {[%clk 1:25:28]} 12... Nxe1 {[%clk 1:09:58]} 13. Qxe1 {[%clk
1:24:48]} 13... Qc7 {[%clk 0:59:51]} 14. Bf4 {[%clk 1:17:44]} 14... e5 {[%clk
0:57:32]} 15. dxe5 {[%clk 1:07:12]} 15... Nxe5 {[%clk 0:57:35]} 16. Qe3 {[%clk
1:07:05]} 16... f6 {[%clk 0:54:00]} 17. h3 {[%clk 0:57:50]} 17... g5 {[%clk
0:38:55]} 18. Bxe5 {[%clk 0:58:01]} 18... fxe5 {[%clk 0:39:20]} 19. Rd2 {[%clk
0:56:08]} 19... Be6 {[%clk 0:37:49]} 20. Rad1 {[%clk 0:56:04]} 20... b5 {[%clk
0:37:20]} 21. a3 {[%clk 0:51:58]} 21... Qb6 {[%clk 0:37:02]} 22. Qxb6 {[%clk
0:47:18]} 22... axb6 {[%clk 0:37:21]} 23. Nd5 {[%clk 0:47:26]} 23... cxd5 {[%clk
0:30:45]} 24. exd5 {[%clk 0:47:53]} 24... Bd7 {[%clk 0:31:11]} 25. d6 {[%clk
0:48:19]} 25... Bf6 {[%clk 0:31:40]} 26. Bxa8 {[%clk 0:48:36]} 26... Rxa8 {[%clk
0:32:08]} 27. f3 {[%clk 0:43:58]} 27... Rd8 {[%clk 0:30:02]} 28. Kf2 {[%clk
0:43:58]} 28... Kf7 {[%clk 0:29:39]} 29. Re1 {[%clk 0:42:17]} 29... Bc6 {[%clk
0:29:24]} 30. Rf1 {[%clk 0:36:03]} 30... Ke6 {[%clk 0:29:09]} 31. Rfd1 {[%clk
0:36:26]} 31... h5 {[%clk 0:28:18]} 32. Ke2 {[%clk 0:31:43]} 32... Rd7 {[%clk
0:26:13]} 33. Kf2 {[%clk 0:31:36]} 33... Rf7 {[%clk 0:25:27]} 34. Re1 {[%clk
0:30:28]} 34... Bg7 {[%clk 0:25:41]} 35. Re3 {[%clk 0:28:31]} 35... Bf8 {[%clk
0:25:28]} 36. d7 {[%clk 0:28:07]} 36... Bxd7 {[%clk 0:25:27]} 37. Kg2 {[%clk
0:24:26]} 37... Bc5 {[%clk 0:25:10]} 38. Re1 {[%clk 0:24:22]} 38... Bc6 {[%clk
0:25:31]} 39. Rf1 {[%clk 0:23:24]} 39... g4 {[%clk 0:25:32]} 0-1

[Variant "Standard"]
[Site "Europe Echecs"]

[Event "Championnat du monde jeunes U12"]
[Date "2024.11.20"]
[White "Rueda Ahumada, Gabriel Omar"]
[Black "Yu, Zhe"]
[WhiteElo "1928"]
[BlackElo "1697"]
[Round "6.32"]
[Result "0-1"]
[TimeControl "5400+30"]

1. d4 {[%clk 1:30:37]} 1... Nf6 {[%clk 1:30:45]} 2. c4 {[%clk 1:30:37]} 2... c5
{[%clk 1:31:07]} 3. d5 {[%clk 1:29:53]} 3... e6 {[%clk 1:31:31]} 4. Nc3 {[%clk
1:29:57]} 4... exd5 {[%clk 1:31:57]} 5. cxd5 {[%clk 1:30:18]} 5... d6 {[%clk
1:32:24]} 6. e4 {[%clk 1:30:30]} 6... Be7 {[%clk 1:32:51]} 7. Bd3 {[%clk
1:27:38]} 7... O-O {[%clk 1:23:30]} 8. f4 {[%clk 1:27:28]} 8... Qb6 {[%clk
1:22:17]} 9. Nf3 {[%clk 1:27:37]} 9... Re8 {[%clk 1:19:21]} 10. Bc2 {[%clk
1:24:12]} 10... Bf8 {[%clk 1:14:29]} 11. O-O {[%clk 1:24:13]} 11... Na6 {[%clk
1:14:22]} 12. e5 {[%clk 1:10:22]} 12... dxe5 {[%clk 1:09:20]} 13. fxe5 {[%clk
1:10:41]} 13... Ng4 {[%clk 1:09:40]} 14. Bxh7+ {[%clk 1:06:52]} 14... Kxh7
{[%clk 1:08:17]} 15. Ng5+ {[%clk 1:07:16]} 15... Kg8 {[%clk 0:55:48]} 16. e6
{[%clk 1:06:51]} 16... f5 {[%clk 0:54:19]} 17. h3 {[%clk 1:05:12]} 17... c4+
{[%clk 0:44:33]} 18. Kh1 {[%clk 1:04:28]} 18... Nf2+ {[%clk 0:42:45]} 19. Rxf2
{[%clk 1:04:52]} 19... Qxf2 {[%clk 0:43:11]} 20. Be3 {[%clk 0:57:01]} 20... Qh4
{[%clk 0:42:26]} 21. Qf3 {[%clk 0:57:02]} 21... g6 {[%clk 0:41:02]} 22. Rd1
{[%clk 0:52:12]} 22... Nc7 {[%clk 0:31:06]} 23. g3 {[%clk 0:46:54]} 23... Qh8
{[%clk 0:24:48]} 24. Rd4 {[%clk 0:46:12]} 24... Bxe6 {[%clk 0:21:30]} 25. Rh4
{[%clk 0:45:18]} 25... Qxc3 {[%clk 0:19:35]} 26. bxc3 {[%clk 0:30:09]} 26...
Bxd5 {[%clk 0:20:01]} 27. Ne4 {[%clk 0:30:32]} 27... Rxe4 {[%clk 0:19:33]} 28.
Kh2 {[%clk 0:30:44]} 28... Rxh4 {[%clk 0:19:54]} 29. Qd1 {[%clk 0:31:06]} 29...
Re4 {[%clk 0:20:13]} 30. Bf4 {[%clk 0:30:53]} 30... Rae8 {[%clk 0:20:22]} 31. g4
{[%clk 0:23:07]} 31... Rxf4 {[%clk 0:20:42]} 32. Kg3 {[%clk 0:23:26]} 32... Bd6
{[%clk 0:20:48]} 33. Kh4 {[%clk 0:23:37]} 33... Re3 {[%clk 0:20:55]} 34. Kg5
{[%clk 0:23:49]} 34... Kg7 {[%clk 0:20:16]} 35. Qd4+ {[%clk 0:16:29]} 35... Rxd4
{[%clk 0:20:39]} 0-1

[Variant "Standard"]
[Site "Europe Echecs"]

[Event "Championnat du monde jeunes U12"]
[Date "2024.11.20"]
[White "Shirinov, Yashar"]
[Black "Nicot, Valentin"]
[WhiteElo "1642"]
[BlackElo "2078"]
[Round "6.33"]
[Result "1-0"]
[TimeControl "5400+30"]

1. Nf3 {[%clk 1:30:57]} 1... f5 {[%clk 1:30:23]} 2. g3 {[%clk 1:31:11]} 2... Nf6
{[%clk 1:30:32]} 3. Bg2 {[%clk 1:31:35]} 3... d6 {[%clk 1:30:13]} 4. d4 {[%clk
1:31:49]} 4... e6 {[%clk 1:30:36]} 5. O-O {[%clk 1:32:12]} 5... Be7 {[%clk
1:30:55]} 6. c4 {[%clk 1:32:02]} 6... O-O {[%clk 1:31:11]} 7. Qc2 {[%clk
1:32:05]} 7... Ne4 {[%clk 1:26:14]} 8. Nbd2 {[%clk 1:31:03]} 8... Nxd2 {[%clk
1:24:14]} 9. Bxd2 {[%clk 1:31:06]} 9... Bf6 {[%clk 1:22:51]} 10. Bc3 {[%clk
1:31:01]} 10... a5 {[%clk 1:19:55]} 11. Rad1 {[%clk 1:26:12]} 11... Qe8 {[%clk
1:11:41]} 12. e4 {[%clk 1:14:46]} 12... fxe4 {[%clk 1:10:29]} 13. Qxe4 {[%clk
1:15:10]} 13... Qh5 {[%clk 1:09:45]} 14. Rfe1 {[%clk 1:13:49]} 14... d5 {[%clk
1:03:50]} 15. Qf4 {[%clk 1:12:21]} 15... Nc6 {[%clk 1:01:48]} 16. Qe3 {[%clk
1:02:19]} 16... Nb4 {[%clk 0:48:35]} 17. Bxb4 {[%clk 1:01:14]} 17... axb4 {[%clk
0:49:04]} 18. cxd5 {[%clk 1:01:34]} 18... exd5 {[%clk 0:47:00]} 19. Ne5 {[%clk
1:00:55]} 19... c6 {[%clk 0:45:48]} 20. Qb3 {[%clk 1:01:12]} 20... Bxe5 {[%clk
0:42:55]} 21. Rxe5 {[%clk 0:59:53]} 21... Qf7 {[%clk 0:42:27]} 22. f4 {[%clk
1:00:04]} 22... Bg4 {[%clk 0:35:49]} 23. Rde1 {[%clk 0:59:15]} 23... Rae8 {[%clk
0:33:59]} 24. Qxb4 {[%clk 0:58:49]} 24... Rxe5 {[%clk 0:33:40]} 25. Rxe5 {[%clk
0:59:06]} 25... Qg6 {[%clk 0:32:49]} 26. h3 {[%clk 0:56:21]} 26... Bxh3 {[%clk
0:21:05]} 27. Bxh3 {[%clk 0:56:14]} 27... Qxg3+ {[%clk 0:21:28]} 28. Bg2 {[%clk
0:56:39]} 28... Qxf4 {[%clk 0:21:48]} 29. Re2 {[%clk 0:56:35]} 29... Qc1+ {[%clk
0:21:34]} 30. Qe1 {[%clk 0:56:08]} 30... Qf4 {[%clk 0:17:38]} 31. Qd2 {[%clk
0:52:08]} 31... Qd6 {[%clk 0:14:18]} 32. Qg5 {[%clk 0:50:06]} 32... Qf4 {[%clk
0:10:53]} 33. Qxf4 {[%clk 0:50:15]} 33... Rxf4 {[%clk 0:11:21]} 34. Rd2 {[%clk
0:50:04]} 34... Kf7 {[%clk 0:10:49]} 35. Rf2 {[%clk 0:50:29]} 35... Rxf2 {[%clk
0:11:09]} 36. Kxf2 {[%clk 0:50:57]} 36... Ke6 {[%clk 0:11:15]} 37. Bh3+ {[%clk
0:51:20]} 37... Kd6 {[%clk 0:11:36]} 38. Ke3 {[%clk 0:51:28]} 38... c5 {[%clk
0:10:27]} 39. a4 {[%clk 0:51:31]} 39... b6 {[%clk 0:10:41]} 40. Bf5 {[%clk
0:51:45]} 40... h5 {[%clk 0:08:44]} 41. Bg6 {[%clk 0:51:58]} 41... h4 {[%clk
0:09:13]} 42. Bf5 {[%clk 0:52:21]} 42... g5 {[%clk 0:09:31]} 43. Bg4 {[%clk
0:52:23]} 43... Kc6 {[%clk 0:08:22]} 44. Kd3 {[%clk 0:52:34]} 44... Kd6 {[%clk
0:07:18]} 45. b3 {[%clk 0:51:56]} 45... Kc6 {[%clk 0:07:38]} 46. Kc3 {[%clk
0:49:50]} 46... Kd6 {[%clk 0:05:37]} 47. b4 {[%clk 0:46:57]} 47... c4 {[%clk
0:04:35]} 48. a5 {[%clk 0:44:38]} 48... b5 {[%clk 0:02:48]} 49. Bf5 {[%clk
0:40:52]} 49... Kc6 {[%clk 0:02:42]} 50. Be6 {[%clk 0:40:58]} 50... Kd6 {[%clk
0:02:29]} 51. a6 {[%clk 0:39:43]} 51... h3 {[%clk 0:01:41]} 52. Bxh3 {[%clk
0:39:43]} 52... Kc6 {[%clk 0:02:07]} 53. Bc8 {[%clk 0:39:58]} 53... Kb6 {[%clk
0:02:25]} 54. Bb7 {[%clk 0:40:15]} 54... g4 {[%clk 0:02:37]} 55. Bxd5 {[%clk
0:40:38]} 55... Kxa6 {[%clk 0:03:05]} 56. Be4 {[%clk 0:40:54]} 56... Kb6 {[%clk
0:03:35]} 57. Kd2 {[%clk 0:40:17]} 57... Kc7 {[%clk 0:03:54]} 58. Ke3 {[%clk
0:40:07]} 58... Kd6 {[%clk 0:04:20]} 59. Kf4 {[%clk 0:40:25]} 59... c3 {[%clk
0:03:33]} 60. Ke3 {[%clk 0:40:51]} 60... c2 1-0

[Variant "Standard"]
[Site "Europe Echecs"]

[Event "Championnat du monde jeunes U12"]
[Date "2024.11.20"]
[White "Saminskij, Jan"]
[Black "Fadeev, Justin Michael"]
[WhiteElo "2202"]
[BlackElo "1878"]
[Round "6.34"]
[Result "1-0"]
[TimeControl "5400+30"]

1. e4 {[%clk 1:30:36]} 1... e6 {[%clk 1:30:47]} 2. d4 {[%clk 1:29:23]} 2... d5
{[%clk 1:31:12]} 3. Nc3 {[%clk 1:29:49]} 3... Bb4 {[%clk 1:31:28]} 4. e5 {[%clk
1:30:14]} 4... c5 {[%clk 1:31:16]} 5. Bd2 {[%clk 1:30:35]} 5... Ne7 {[%clk
1:30:16]} 6. a3 {[%clk 1:30:30]} 6... cxd4 {[%clk 1:22:32]} 7. axb4 {[%clk
1:26:46]} 7... dxc3 {[%clk 1:22:55]} 8. Bxc3 {[%clk 1:26:59]} 8... O-O {[%clk
1:21:57]} 9. Nf3 {[%clk 1:25:45]} 9... b6 {[%clk 1:20:01]} 10. Bd3 {[%clk
1:25:21]} 10... Ng6 {[%clk 1:17:43]} 11. Qd2 {[%clk 1:21:27]} 11... Bb7 {[%clk
1:13:25]} 12. O-O {[%clk 1:17:47]} 12... d4 {[%clk 1:00:19]} 13. Nxd4 {[%clk
1:09:40]} 13... Nxe5 {[%clk 0:59:48]} 14. Rfe1 {[%clk 0:56:56]} 14... Nxd3
{[%clk 0:54:40]} 15. Qxd3 {[%clk 0:57:16]} 15... Qg5 {[%clk 0:49:35]} 16. f3
{[%clk 0:48:37]} 16... Nc6 {[%clk 0:45:27]} 17. Nxc6 {[%clk 0:45:27]} 17... Bxc6
{[%clk 0:44:24]} 18. Re5 {[%clk 0:44:10]} 18... Qg6 {[%clk 0:40:19]} 19. Qe3
{[%clk 0:41:52]} 19... h6 {[%clk 0:38:44]} 20. b5 {[%clk 0:37:56]} 20... Bd5
{[%clk 0:36:15]} 21. Ra4 {[%clk 0:34:44]} 21... f6 {[%clk 0:33:00]} 22. Rg4
{[%clk 0:32:20]} 22... Qxg4 {[%clk 0:28:40]} 23. fxg4 {[%clk 0:32:28]} 23...
fxe5 {[%clk 0:28:59]} 24. Qxe5 {[%clk 0:32:06]} 24... Rf7 {[%clk 0:27:10]} 25.
h4 {[%clk 0:32:17]} 25... Kh7 {[%clk 0:22:17]} 26. g5 {[%clk 0:28:55]} 26... h5
{[%clk 0:21:08]} 27. Qe2 {[%clk 0:22:11]} 27... g6 {[%clk 0:16:32]} 28. Bf6
{[%clk 0:22:37]} 28... Re8 {[%clk 0:13:29]} 29. c4 {[%clk 0:22:40]} 29... Bb7
{[%clk 0:12:31]} 30. Qe5 {[%clk 0:17:58]} 30... Rd7 {[%clk 0:11:25]} 31. b3
{[%clk 0:17:40]} 31... Kg8 {[%clk 0:10:15]} 32. Kh2 {[%clk 0:16:49]} 32... Ba8
{[%clk 0:08:15]} 33. Kg1 {[%clk 0:13:47]} 33... Rd1+ {[%clk 0:07:02]} 34. Kf2
{[%clk 0:14:12]} 34... Rd7 {[%clk 0:06:43]} 35. b4 {[%clk 0:12:30]} 35... Bb7
{[%clk 0:04:34]} 36. c5 {[%clk 0:12:42]} 36... bxc5 {[%clk 0:02:33]} 37. bxc5
{[%clk 0:13:07]} 37... Bd5 {[%clk 0:02:45]} 38. c6 {[%clk 0:13:33]} 38... Rf7
{[%clk 0:02:45]} 39. Qd6 {[%clk 0:11:09]} 39... Rc8 {[%clk 0:02:17]} 40. Qa3
{[%clk 0:08:29]} 40... Bc4 {[%clk 0:01:04]} 41. Qa4 {[%clk 0:08:54]} 41... Bd5
{[%clk 0:01:09]} 42. Qc2 {[%clk 0:08:42]} 42... Rxf6+ {[%clk 0:00:33]} 43. gxf6
{[%clk 0:08:53]} 43... Kf7 {[%clk 0:00:56]} 44. Qc5 {[%clk 0:09:10]} 44... Kxf6
{[%clk 0:01:01]} 45. Qd4+ {[%clk 0:09:36]} 45... Kf5 {[%clk 0:00:53]} 46. Ke3
{[%clk 0:08:34]} 46... g5 {[%clk 0:00:56]} 47. hxg5 {[%clk 0:09:01]} 47... Kxg5
{[%clk 0:01:17]} 48. Qxa7 {[%clk 0:09:15]} 48... Bxc6 {[%clk 0:01:19]} 49. Qc5+
{[%clk 0:09:38]} 49... Kf6 {[%clk 0:01:30]} 50. bxc6 {[%clk 0:10:04]} 50... e5
{[%clk 0:01:40]} 51. Qd6+ {[%clk 0:10:30]} 51... Kg5 {[%clk 0:01:58]} 52. Qxe5+
{[%clk 0:10:55]} 52... Kh6 {[%clk 0:02:15]} 53. Qe6+ {[%clk 0:11:21]} 53... Kg5
{[%clk 0:02:39]} 54. Qxc8 {[%clk 0:11:47]} 54... h4 {[%clk 0:02:58]} 55. Qe6
{[%clk 0:12:04]} 55... h3 {[%clk 0:03:17]} 56. gxh3 {[%clk 0:12:27]} 56... Kh5
{[%clk 0:03:44]} 57. Kf4 {[%clk 0:12:52]} 57... Kh4 {[%clk 0:03:51]} 58. Qg4#
{[%clk 0:12:49]} 1-0

[Variant "Standard"]
[Site "Europe Echecs"]

[Event "Championnat du monde jeunes U12"]
[Date "2024.11.20"]
[White "Liu, Richard Jingjie"]
[Black "Nguyen, Khoi"]
[WhiteElo "1795"]
[BlackElo "1994"]
[Round "6.35"]
[Result "0-1"]
[TimeControl "5400+30"]

1. e4 {[%clk 1:30:57]} 1... e6 {[%clk 1:30:53]} 2. d4 {[%clk 1:31:20]} 2... d5
{[%clk 1:31:17]} 3. e5 {[%clk 1:31:48]} 3... c5 {[%clk 1:31:40]} 4. c3 {[%clk
1:32:14]} 4... Nc6 {[%clk 1:32:04]} 5. Nf3 {[%clk 1:32:40]} 5... Bd7 {[%clk
1:32:21]} 6. a3 {[%clk 1:32:42]} 6... Nge7 {[%clk 1:32:18]} 7. Bd3 {[%clk
1:32:45]} 7... cxd4 {[%clk 1:29:46]} 8. cxd4 {[%clk 1:33:13]} 8... Nf5 {[%clk
1:28:24]} 9. Bxf5 {[%clk 1:33:42]} 9... exf5 {[%clk 1:28:44]} 10. Nc3 {[%clk
1:34:08]} 10... Be6 {[%clk 1:28:22]} 11. O-O {[%clk 1:34:19]} 11... Be7 {[%clk
1:28:38]} 12. Ne1 {[%clk 1:34:17]} 12... Qb6 {[%clk 1:19:43]} 13. Nc2 {[%clk
1:34:15]} 13... O-O {[%clk 1:14:09]} 14. Kh1 {[%clk 1:33:28]} 14... Rac8 {[%clk
1:13:36]} 15. f4 {[%clk 1:33:31]} 15... Na5 {[%clk 1:11:29]} 16. Ne3 {[%clk
1:28:42]} 16... Rfd8 {[%clk 1:10:33]} 17. g4 {[%clk 1:24:10]} 17... Nc4 {[%clk
0:42:11]} 18. Na4 {[%clk 1:11:44]} 18... Qc7 {[%clk 0:36:14]} 19. Nxf5 {[%clk
1:11:07]} 19... Bxf5 {[%clk 0:35:33]} 20. gxf5 {[%clk 1:11:36]} 20... Qd7 {[%clk
0:33:27]} 21. b3 {[%clk 1:05:19]} 21... Na5 {[%clk 0:33:48]} 22. Bd2 {[%clk
0:47:31]} 22... Nc6 {[%clk 0:33:55]} 23. f6 gxf6 {[%clk 0:29:57]} 24. Rg1+
{[%clk 0:44:46]} 24... Kh8 {[%clk 0:30:21]} 25. Qh5 {[%clk 0:44:40]} 25... Rg8
{[%clk 0:26:03]} 26. Qxf7 {[%clk 0:42:56]} 26... Nxd4 {[%clk 0:20:57]} 27. exf6
{[%clk 0:41:40]} 27... Qh3 {[%clk 0:21:17]} 28. Raf1 {[%clk 0:27:35]} 28... Nf3
{[%clk 0:21:10]} 0-1

[Variant "Standard"]
[Site "Europe Echecs"]